Organisation Name,Organisation Code,Directorate/Service,Service Category Label,Service Code,Supplier Name,Supplier Reference,Payment Date,Transaction Number,Net Payment,Purpose of Spend
North West Leicestershire District Council,31UH,Leisure Centres,Hood Park Leisure Centre,HPLC,ADT Fire And Security,A000021,27/09/2017,1351828,363.13,Service Contracts
North West Leicestershire District Council,31UH,Finance,Financial Planning,FINPLA,Appleby Magna Parish Council,A000060,27/09/2017,1351974,8500,Precepts
North West Leicestershire District Council,31UH,Communications,Corporate - Customer Services,CS,Neopost Limited,A000079,06/09/2017,1350879,2500,Postages
North West Leicestershire District Council,31UH,Communications,Corporate - Customer Services,CS,Neopost Limited,A000079,27/09/2017,1351767,4999.36,Postages
North West Leicestershire District Council,31UH,Finance,Financial Planning,FINPLA,Ashby Woulds Town Council,A000089,27/09/2017,1351976,53949.5,Precepts
North West Leicestershire District Council,31UH,Finance,Financial Planning,FINPLA,Ashby De La Zouch Town Council,A000091,27/09/2017,1351975,211327,Precepts
North West Leicestershire District Council,31UH,Property Services,Property Facilities Management,PROPFM,Gleam Team Services Limited,A000129,13/09/2017,1350690,350,Window Cleaning
North West Leicestershire District Council,31UH,Finance,Financial Planning,FINPLA,Belton Parish Council,A000164,27/09/2017,1351977,10570,Precepts
North West Leicestershire District Council,31UH,Street Management,Environment Transport,ENOT,Boc Limited,A000193,20/09/2017,1351436,330.79,Operational Equipment - Purchases
North West Leicestershire District Council,31UH,Finance,Financial Planning,FINPLA,Breedon On The Hill Parish Council,A000215,27/09/2017,1351978,10937.5,Precepts
North West Leicestershire District Council,31UH,Property Services,Property Facilities Management,PROPFM,British Telecommunications Plc,A000233,13/09/2017,1351281,559.95,Telephones
North West Leicestershire District Council,31UH,Legal & Democratic,Legal Services,LDLS,Browne Jacobson LLP,A000251,20/09/2017,1351556,2000,Legal & Professional Services
North West Leicestershire District Council,31UH,Finance,Financial Planning,FINPLA,Castle Donington Parish Council,A000300,27/09/2017,1351979,150774.5,Precepts
North West Leicestershire District Council,31UH,Finance,Financial Planning,FINPLA,Charley Parish Council,A000322,27/09/2017,1351996,2050.5,Precepts
North West Leicestershire District Council,31UH,Property Services,Property Facilities Management,PROPFM,Charnwood Borough Council,A000323,27/09/2017,1351744,600,Asset Protection
North West Leicestershire District Council,31UH,Leisure Centres,Hermitage Bar & Catering,HLBC,Coalville Signs,A000370,20/09/2017,1351493,375,Publicity & Promotion
North West Leicestershire District Council,31UH,Finance,Financial Planning,FINPLA,Coleorton Parish Council,A000382,27/09/2017,1351998,7266.5,Precepts
North West Leicestershire District Council,31UH,Environmental Health,Environmental Health & Licensing,EEHL,College Garth Boarding Kennels,A000385,20/09/2017,1351500,2102.26,Stray Dog Service
North West Leicestershire District Council,31UH,Information Technology,ICT Services,ICT,Dell Computer Corporation Ltd,A000470,06/09/2017,1350676,3525.45,Contract Payments (Other) Ext
North West Leicestershire District Council,31UH,Street Management,Environment - Street Scene,ESS,Derby City Council,A000478,13/09/2017,1351023,1500,Subscriptions
North West Leicestershire District Council,31UH,Street Management,Environment - Street Scene,ESS,Derby City Council,A000478,13/09/2017,1351142,790,Training Expenses
North West Leicestershire District Council,31UH,Street Management,Environment Transport,ENOT,Dennis Eagle Limited,A000522,06/09/2017,1350684,289.16,Repairs - Parts
North West Leicestershire District Council,31UH,Street Management,Environment Transport,ENOT,Dennis Eagle Limited,A000522,27/09/2017,1351753,332.78,Non Scheduled Maintenance - Parts
North West Leicestershire District Council,31UH,Street Management,Environment Transport,ENOT,Electract Limited,A000548,20/09/2017,1351537,441,General Repairs
North West Leicestershire District Council,31UH,Street Management,Environment Transport,ENOT,Ford & Slater Group Ltd,A000625,06/09/2017,1350632,609.36,Repairs - Parts
North West Leicestershire District Council,31UH,Street Management,Environment Transport,ENOT,Ford & Slater Group Ltd,A000625,06/09/2017,1350693,729.6,Vehicle Parts
North West Leicestershire District Council,31UH,Leisure Centres,Hood Park Leisure Centre,HPLC,William Freer Ltd,A000639,20/09/2017,1351513,1819.1,Service Contracts
North West Leicestershire District Council,31UH,Street Management,Environment Parks,ENOP,Glasdon UK Ltd,A000671,06/09/2017,1350682,307,Operational Equipment - Purchases
North West Leicestershire District Council,31UH,Street Management,Environment Parks,ENOP,Glasdon UK Ltd,A000671,06/09/2017,1350683,3181.38,Operational Equipment - Purchases
North West Leicestershire District Council,31UH,Finance,Exchequer Services,EXCH,H M Land Registry,A000713,12/09/2017,1351259,661,Land Registry Searches
North West Leicestershire District Council,31UH,Finance,Exchequer Services,EXCH,H M Land Registry,A000713,26/09/2017,1352008,334,Land Registry Searches
North West Leicestershire District Council,31UH,Finance,Financial Planning,FINPLA,Heather Parish Council,A000749,27/09/2017,1351981,6250,Precepts
North West Leicestershire District Council,31UH,Finance,Financial Planning,FINPLA,Hinckley & Bosworth Borough Council,A000770,06/09/2017,1350903,17190,Shared Revs & Bens Partnership costs
North West Leicestershire District Council,31UH,Finance,Financial Planning,FINPLA,Hinckley & Bosworth Borough Council,A000770,13/09/2017,1351167,197117.41,Shared Revs & Bens Partnership costs
North West Leicestershire District Council,31UH,Leisure Centres,Hermitage Bar & Catering,HLBC,Hopwells Frozen Foods Limited,A000783,27/09/2017,1351794,315.35,Catering Provisions
North West Leicestershire District Council,31UH,Finance,Financial Planning,FINPLA,Ibstock Parish Council,A000807,27/09/2017,1351982,103174.5,Precepts
North West Leicestershire District Council,31UH,Leisure Centres,Hood Park Leisure Centre,HPLC,Ivanhoe Community College,A000852,13/09/2017,1351186,723.63,Electricity
North West Leicestershire District Council,31UH,Housing,HRA Housing Management,HRAHM,PPG Architectural Coatings Ltd,A000876,27/09/2017,1351859,1742.36,Internal Decorations
North West Leicestershire District Council,31UH,Finance,Financial Planning,FINPLA,Kegworth Parish Council,A000882,27/09/2017,1351984,52937,Precepts
North West Leicestershire District Council,31UH,Street Management,Environment Parks,ENOP,Aggregate Industries Uk Ltd,A000940,20/09/2017,1350770,532.23,External Materials
North West Leicestershire District Council,31UH,Housing,HRA Housing Management,HRAHM,Leicestershire County Council,A000950,13/09/2017,1351179,6320.84,Contract Cleaning
North West Leicestershire District Council,31UH,Finance,Financial Planning,FINPLA,Leicestershire County Council,A000950,12/09/2017,1351215,1832634,Precepts
North West Leicestershire District Council,31UH,Finance,Financial Planning,FINPLA,Leicestershire County Council,A000950,12/09/2017,1351217,3805048,Precepts
North West Leicestershire District Council,31UH,Street Management,Environment - Street Scene,ESS,Leicestershire County Council,A000950,06/09/2017,1350751,6915,Multi Agency Traveller Unit Fees
North West Leicestershire District Council,31UH,Finance,Financial Planning,FINPLA,Leicestershire County Council,A000951,20/09/2017,1351510,9500,Consultants Fees
North West Leicestershire District Council,31UH,Housing Repairs,HRA Housing Repairs & Maintenance,HRAHRM,Leicestershire County Council,A000951,06/09/2017,1350702,11126.45,Fuel
North West Leicestershire District Council,31UH,Housing Repairs,HRA Housing Repairs & Maintenance,HRAHRM,Leicestershire County Council,A000951,06/09/2017,1350703,12422.64,Fuel
North West Leicestershire District Council,31UH,Finance,Exchequer Services,EXCH,ESPO,A000958,21/09/2017,1351731,8104.17,Gas
North West Leicestershire District Council,31UH,Legal & Democratic,Legal Services,LDLS,ESPO,A000958,27/09/2017,1351746,335,Office Supplies
North West Leicestershire District Council,31UH,Housing Repairs,HRA Housing Repairs & Maintenance,HRAHRM,ESPO,A000958,20/09/2017,1351183,1075.87,Stationery
North West Leicestershire District Council,31UH,Communications,Corporate - Customer Services,CS,ESPO,A000958,27/09/2017,1351704,462,Stationery
North West Leicestershire District Council,31UH,Leisure Centres,Hermitage Leisure Centre,HLC,J P Lennard Ltd,A000969,06/09/2017,1350738,844.62,Operational Equipment
North West Leicestershire District Council,31UH,Leisure Centres,Hermitage Leisure Centre,HLC,J P Lennard Ltd,A000969,13/09/2017,1351061,295.05,Operational Equipment
North West Leicestershire District Council,31UH,Leisure Centres,Hood Park Leisure Centre,HPLC,J P Lennard Ltd,A000969,20/09/2017,1351518,546.07,Equipment For Resale
North West Leicestershire District Council,31UH,Leisure Centres,Hermitage Leisure Centre,HLC,J P Lennard Ltd,A000969,27/09/2017,1351803,1208.65,Operational Equipment
North West Leicestershire District Council,31UH,Leisure Centres,Hood Park Leisure Centre,HPLC,J P Lennard Ltd,A000969,27/09/2017,1351829,942.21,Operational Equipment
North West Leicestershire District Council,31UH,Street Management,Environment Transport,ENOT,J F Lloyd & Sons,A000991,13/09/2017,1351148,350,Operational Equipment - Purchases
North West Leicestershire District Council,31UH,Street Management,Environment Transport,ENOT,J F Lloyd & Sons,A000991,20/09/2017,1351423,250,Hire Of Operational Equipment
North West Leicestershire District Council,31UH,Finance,Financial Planning,FINPLA,Lockington Cum Hemington PC,A000999,27/09/2017,1351985,4673,Precepts
North West Leicestershire District Council,31UH,Finance,Financial Planning,FINPLA,Long Whatton & Diseworth PC,A001010,27/09/2017,1351986,19297,Precepts
North West Leicestershire District Council,31UH,Finance,Financial Planning,FINPLA,Measham Parish Council,A001082,27/09/2017,1351987,56331.5,Precepts
North West Leicestershire District Council,31UH,Leisure Centres,Hermitage Leisure Centre,HLC,John Merison BMC Ltd,A001092,06/09/2017,1350411,14787.77,Maintenance and Repair Contract
North West Leicestershire District Council,31UH,Planning & Development,Environment Community Planning,ECP,John Merison BMC Ltd,A001092,06/09/2017,1350691,482.8,Maintenance and Repair Contract
North West Leicestershire District Council,31UH,Street Management,Environment - Street Scene,ESS,John Merison BMC Ltd,A001092,06/09/2017,1350761,324.25,Maintenance and Repair Contract
North West Leicestershire District Council,31UH,Property Services,Property Facilities Management,PROPFM,John Merison BMC Ltd,A001092,06/09/2017,1350757,698.33,Maintenance and Repair Contract
North West Leicestershire District Council,31UH,Property Services,Property Commercial Lettings,PROPCL,John Merison BMC Ltd,A001092,13/09/2017,1351011,620.02,Maintenance and Repair Contract
North West Leicestershire District Council,31UH,Property Services,Property Facilities Management,PROPFM,John Merison BMC Ltd,A001092,13/09/2017,1351022,250,Maintenance and Repair Contract
North West Leicestershire District Council,31UH,Planning & Development,Environment - Development Control,EDC,John Merison BMC Ltd,A001092,13/09/2017,1351072,5217.07,Maintenance and Repair Contract
North West Leicestershire District Council,31UH,Property Services,Property Commercial Lettings,PROPCL,John Merison BMC Ltd,A001092,13/09/2017,1351161,278.53,Maintenance and Repair Contract
North West Leicestershire District Council,31UH,Property Services,Property Commercial Lettings,PROPCL,John Merison BMC Ltd,A001092,13/09/2017,1351162,298.83,Maintenance and Repair Contract
North West Leicestershire District Council,31UH,Property Services,Property Commercial Lettings,PROPCL,John Merison BMC Ltd,A001092,13/09/2017,1351192,3659.13,Maintenance and Repair Contract
North West Leicestershire District Council,31UH,Leisure Centres,Hood Park Leisure Centre,HPLC,John Merison BMC Ltd,A001092,20/09/2017,1351511,413.5,Maintenance and Repair Contract
North West Leicestershire District Council,31UH,Leisure Centres,Hermitage Leisure Centre,HLC,John Merison BMC Ltd,A001092,20/09/2017,1351512,399.07,Maintenance and Repair Contract
North West Leicestershire District Council,31UH,Leisure Centres,Hermitage Leisure Centre,HLC,John Merison BMC Ltd,A001092,27/09/2017,1351707,283.8,Maintenance and Repair Contract
North West Leicestershire District Council,31UH,Property Services,Property Facilities Management,PROPFM,John Merison BMC Ltd,A001092,27/09/2017,1351821,2669.67,Maintenance and Repair Contract
North West Leicestershire District Council,31UH,Property Services,Property Facilities Management,PROPFM,John Merison BMC Ltd,A001092,27/09/2017,1351999,10490.62,Maintenance and Repair Contract
North West Leicestershire District Council,31UH,Street Management,Environment Transport,ENOT,Mobile Hydraulics Ltd,A001131,06/09/2017,1350663,292.99,Repairs - Parts
North West Leicestershire District Council,31UH,Leisure Centres,Hermitage Bar & Catering,HLBC,The Muffin Man,A001162,27/09/2017,1351788,253.62,Catering Provisions
North West Leicestershire District Council,31UH,Finance,Financial Planning,FINPLA,"Oakthorpe, Donisthorpe & Acresford Parish Council",A001234,27/09/2017,1351988,25000,Precepts
North West Leicestershire District Council,31UH,Communications,Corporate - Communications,CP,One Stop Promotions (Leics) Ltd,A001240,06/09/2017,1350723,1802.5,Event Expenditure
North West Leicestershire District Council,31UH,Finance,Financial Planning,FINPLA,Osgathorpe Parish Council,A001251,27/09/2017,1351989,1982.5,Precepts
North West Leicestershire District Council,31UH,Street Management,Environment Waste Management,ENOWM,ESE World Limited,A001253,13/09/2017,1351210,514.3,General Materials
North West Leicestershire District Council,31UH,Finance,Financial Planning,FINPLA,Packington Parish Council,A001257,27/09/2017,1351990,9819,Precepts
North West Leicestershire District Council,31UH,Information Technology,ICT Services,ICT,Phoenix Software Limited,A001298,13/09/2017,1350790,3767.6,Corporate IT Licences
North West Leicestershire District Council,31UH,Information Technology,ICT Services,ICT,Phoenix Software Limited,A001298,27/09/2017,1351836,2569.5,Contract Payments (Other) Ext
North West Leicestershire District Council,31UH,Finance,Financial Planning,FINPLA,Public Works Loan Board,A001340,26/09/2017,1352009,1000000,Policy Lending
North West Leicestershire District Council,31UH,Finance,Financial Planning,FINPLA,Public Works Loan Board,A001340,26/09/2017,1352010,92134.53,Policy Lending
North West Leicestershire District Council,31UH,Finance,Financial Planning,FINPLA,Public Works Loan Board,A001340,26/09/2017,1352011,536448.66,Policy Lending
North West Leicestershire District Council,31UH,Street Management,Environment Transport,ENOT,QPS Plastics Ltd,A001342,06/09/2017,1350694,486,Non Scheduled Maintenance - Parts
North West Leicestershire District Council,31UH,Finance,Financial Planning,FINPLA,Ravenstone With Snibston PC,A001364,27/09/2017,1351991,26708.5,Precepts
North West Leicestershire District Council,31UH,Planning & Development,Environment - Development Control,EDC,Euro RSCG People T/A Havas People Ltd,A001395,06/09/2017,1350737,709.84,Advertising
North West Leicestershire District Council,31UH,Planning & Development,Environment - Development Control,EDC,Euro RSCG People T/A Havas People Ltd,A001395,06/09/2017,1350822,940.87,Advertising
North West Leicestershire District Council,31UH,Planning & Development,Environment - Development Control,EDC,Euro RSCG People T/A Havas People Ltd,A001395,06/09/2017,1350825,486.77,Advertising
North West Leicestershire District Council,31UH,Planning & Development,Environment - Development Control,EDC,Euro RSCG People T/A Havas People Ltd,A001395,06/09/2017,1350826,710.12,Advertising
North West Leicestershire District Council,31UH,Planning & Development,Environment - Development Control,EDC,Euro RSCG People T/A Havas People Ltd,A001395,06/09/2017,1350827,667.91,Advertising
North West Leicestershire District Council,31UH,Planning & Development,Environment - Development Control,EDC,Euro RSCG People T/A Havas People Ltd,A001395,06/09/2017,1350828,398.75,Advertising
North West Leicestershire District Council,31UH,Planning & Development,Environment - Development Control,EDC,Euro RSCG People T/A Havas People Ltd,A001395,06/09/2017,1350829,638.67,Advertising
North West Leicestershire District Council,31UH,Planning & Development,Environment - Development Control,EDC,Euro RSCG People T/A Havas People Ltd,A001395,06/09/2017,1350830,345.85,Advertising
North West Leicestershire District Council,31UH,Planning & Development,Environment - Development Control,EDC,Euro RSCG People T/A Havas People Ltd,A001395,06/09/2017,1350856,1003.4,Advertising
North West Leicestershire District Council,31UH,Planning & Development,Environment - Development Control,EDC,Euro RSCG People T/A Havas People Ltd,A001395,06/09/2017,1350902,312.84,Advertising
North West Leicestershire District Council,31UH,Finance,Financial Planning,FINPLA,Snarestone Parish Council,A001524,27/09/2017,1351992,3088,Precepts
North West Leicestershire District Council,31UH,Leisure Centres,Hood Park Leisure Centre,HPLC,Stowlin Ltd,A001591,13/09/2017,1351133,359.72,Water Treatment
North West Leicestershire District Council,31UH,Leisure Centres,Hood Park Leisure Centre,HPLC,Stowlin Ltd,A001591,13/09/2017,1351128,289.8,Operational Equipment
North West Leicestershire District Council,31UH,Leisure Centres,Hood Park Leisure Centre,HPLC,Stowlin Ltd,A001591,13/09/2017,1350776,307.5,Water Treatment
North West Leicestershire District Council,31UH,Street Management,Environment Transport,ENOT,Berendsen Uk Ltd,A001600,06/09/2017,1350974,282.96,Protective Clothing
North West Leicestershire District Council,31UH,Street Management,Environment Waste Management,ENOWM,Berendsen Uk Ltd,A001600,13/09/2017,1351200,346.19,Protective Clothing
North West Leicestershire District Council,31UH,Finance,Financial Planning,FINPLA,Swannington Parish Council,A001608,27/09/2017,1351997,10643,Precepts
North West Leicestershire District Council,31UH,Finance,Financial Planning,FINPLA,Swepstone Parish Council,A001613,27/09/2017,1351994,8750,Precepts
North West Leicestershire District Council,31UH,Leisure Centres,Hood Park Leisure Centre,HPLC,Technogym Uk Limited,A001642,27/09/2017,1351551,693.44,Operational Equipment
North West Leicestershire District Council,31UH,Street Management,Environment Transport,ENOT,Terberg Matec UK Limited,A001647,27/09/2017,1351839,1027.86,Repairs - Parts
North West Leicestershire District Council,31UH,Information Technology,ICT Services,ICT,Tunstall Healthcare (UK) Limited,A001701,06/09/2017,1350733,450,Contract Payments (Other) Ext
North West Leicestershire District Council,31UH,Housing,HRA Older Persons Service,HRAOPS,Tunstall Healthcare (UK) Limited,A001701,06/09/2017,1349176,708,Alarm System Telephones
North West Leicestershire District Council,31UH,Housing,HRA Older Persons Service,HRAOPS,Tunstall Healthcare (UK) Limited,A001701,06/09/2017,1350418,468,Alarm System Telephones
North West Leicestershire District Council,31UH,Information Technology,ICT Services,ICT,Tunstall Healthcare (UK) Limited,A001701,13/09/2017,1351190,450,Contract Payments (Other) Ext
North West Leicestershire District Council,31UH,Finance,Financial Planning,FINPLA,Worthington Parish Council,A001813,27/09/2017,1351995,4842.5,Precepts
North West Leicestershire District Council,31UH,Leisure Centres,Hood Park Leisure Centre,HPLC,Zoggs International Ltd,A001833,20/09/2017,1350445,1716.15,Equipment For Resale
North West Leicestershire District Council,31UH,Leisure Centres,Hood Park Leisure Centre,HPLC,Zoggs International Ltd,A001833,20/09/2017,1350732,2011.1,Equipment For Resale
North West Leicestershire District Council,31UH,Finance,Financial Planning,FINPLA,Zurich Municipal,A001835,20/09/2017,1351674,2500,Insurance Services
North West Leicestershire District Council,31UH,Finance,Exchequer Services,EXCH,Vodafone Limited,A001861,21/09/2017,1351732,2547.14,Mobile Telephones
North West Leicestershire District Council,31UH,Information Technology,ICT Services,ICT,Spectra Security Limited,A002190,27/09/2017,1351751,350,Contract Payments (Other) Ext
North West Leicestershire District Council,31UH,Street Management,Environment - Street Scene,ESS,Capita Business Services Ltd,A002968,06/09/2017,1350381,750,Computing
North West Leicestershire District Council,31UH,Street Management,Environment - Street Scene,ESS,Capita Business Services Ltd,A002968,06/09/2017,1350834,-750,Computing
North West Leicestershire District Council,31UH,Communications,Corporate - Customer Services,CS,Capita Business Services Ltd,A002968,06/09/2017,1350835,-7379,Computing
North West Leicestershire District Council,31UH,Communications,Corporate - Customer Services,CS,Capita Business Services Ltd,A002968,06/09/2017,1350836,4379,Computing
North West Leicestershire District Council,31UH,Communications,Corporate - Customer Services,CS,Capita Business Services Ltd,A002968,06/09/2017,1350379,4379,Computing
North West Leicestershire District Council,31UH,Property Services,Property Commercial Lettings,PROPCL,Coalville Cleaning Services,A003037,06/09/2017,1350643,558.06,Contract Cleaning
North West Leicestershire District Council,31UH,Property Services,Property Commercial Lettings,PROPCL,Coalville Cleaning Services,A003037,06/09/2017,1350644,289.95,Contract Cleaning
North West Leicestershire District Council,31UH,Property Services,Property Commercial Lettings,PROPCL,Coalville Cleaning Services,A003037,27/09/2017,1351852,289.95,Contract Cleaning
North West Leicestershire District Council,31UH,Property Services,Property Commercial Lettings,PROPCL,Coalville Cleaning Services,A003037,27/09/2017,1351853,558.06,Contract Cleaning
North West Leicestershire District Council,31UH,Housing Repairs,HRA Housing Repairs & Maintenance,HRAHRM,City Electrical Factors Ltd,A003893,27/09/2017,1351804,1374.37,Electrical Materials
North West Leicestershire District Council,31UH,Housing Repairs,HRA Housing Repairs & Maintenance,HRAHRM,City Electrical Factors Ltd,A003893,27/09/2017,1351807,286.54,Electrical Materials
North West Leicestershire District Council,31UH,Finance,Exchequer Services,EXCH,Kings Armoured Security Services Ltd,A004468,13/09/2017,1351169,1291.01,Cash Collection Services
North West Leicestershire District Council,31UH,Leisure Centres,Castle Donington Community College,CDCC,Elliott Group Limited,A005413,27/09/2017,1351712,522.58,Secure Storage
North West Leicestershire District Council,31UH,Finance,Financial Planning,FINPLA,The Office of the Police and Crime Commissioner for Leicestershire,A007096,12/09/2017,1351219,608107.75,Precepts
North West Leicestershire District Council,31UH,Property Services,Property Commercial Lettings,PROPCL,Purchase Power,A008204,06/09/2017,1350624,297.24,Equipment Operating Leases
North West Leicestershire District Council,31UH,Property Services,Property Commercial Lettings,PROPCL,Purchase Power,A008204,06/09/2017,1350759,2020,Postages
North West Leicestershire District Council,31UH,Street Management,Environment Waste Management,ENOWM,Post Office Limited,A008559,13/09/2017,1351199,1540,Licences
North West Leicestershire District Council,31UH,Housing Repairs,HRA Housing Repairs & Maintenance,HRAHRM,Ksa Consulting Engineers Ltd,A008757,06/09/2017,1350795,450,Legal & Professional Services
North West Leicestershire District Council,31UH,Housing Repairs,HRA Housing Repairs & Maintenance,HRAHRM,Ksa Consulting Engineers Ltd,A008757,06/09/2017,1350796,450,Legal & Professional Services
North West Leicestershire District Council,31UH,Information Technology,ICT Services,ICT,Virgin Media Business,A008908,27/09/2017,1351760,3176.38,Telephone/Broadband Equipment - Maintenance
North West Leicestershire District Council,31UH,Leisure Centres,Hermitage Leisure Centre,HLC,Phs Group Ltd,A009237,06/09/2017,1350888,3308.22,Service Contracts
North West Leicestershire District Council,31UH,Leisure Centres,Hermitage Leisure Centre,HLC,Phs Group Ltd,A009237,06/09/2017,1350892,-2483.44,Service Contracts
North West Leicestershire District Council,31UH,Leisure Centres,Hood Park Leisure Centre,HPLC,Phs Group Ltd,A009237,06/09/2017,1350897,-590.04,Service Contracts
North West Leicestershire District Council,31UH,Leisure Centres,Hermitage Leisure Centre,HLC,Phs Group Ltd,A009237,06/09/2017,1350886,2324.41,Service Contracts
North West Leicestershire District Council,31UH,Leisure Centres,Hood Park Leisure Centre,HPLC,Phs Group Ltd,A009237,06/09/2017,1350898,2366.56,Service Contracts
North West Leicestershire District Council,31UH,Housing Repairs,HRA Housing Repairs & Maintenance,HRAHRM,Bonser Building Contractors,A009600,27/09/2017,1351856,3016,Building works- in excess of insurance
North West Leicestershire District Council,31UH,Housing Repairs,HRA Housing Repairs & Maintenance,HRAHRM,Bonser Building Contractors,A009600,27/09/2017,1351857,833.33,Building works- in excess of insurance
North West Leicestershire District Council,31UH,Street Management,Environment Transport,ENOT,Westbury Industrial Supplies Limited,A009933,20/09/2017,1351457,285.6,Protective Clothing
North West Leicestershire District Council,31UH,Housing Strategy,Community - Housing Strategy,HS,Primrose Hotels Ltd T/A Hermitage Park Hotel,A010779,27/09/2017,1351740,1105,Homelessness- Accomodation
North West Leicestershire District Council,31UH,Finance,Exchequer Services,EXCH,Selima Limited,A010859,06/09/2017,1351005,3400,Payroll Services
North West Leicestershire District Council,31UH,Street Management,Environment - Street Scene,ESS,Trevor Roberts,A011099,27/09/2017,1351815,850,Training Course
North West Leicestershire District Council,31UH,Property Services,Property Facilities Management,PROPFM,Regarde Security Ltd,A013049,13/09/2017,1351034,262.4,Security Services
North West Leicestershire District Council,31UH,Property Services,Property Facilities Management,PROPFM,Regarde Security Ltd,A013049,13/09/2017,1351038,524.8,Building Security
North West Leicestershire District Council,31UH,Street Management,Environment Parks,ENOP,Regarde Security Ltd,A013049,13/09/2017,1351043,851.9,Security Services
North West Leicestershire District Council,31UH,Street Management,Environment - Street Scene,ESS,Regarde Security Ltd,A013049,27/09/2017,1351534,364,Security Services
North West Leicestershire District Council,31UH,Street Management,Environment Transport,ENOT,Aebi Schmidt Uk Limited,A017053,13/09/2017,1350854,360.46,Non Scheduled Maintenance - Parts
North West Leicestershire District Council,31UH,Street Management,Environment Transport,ENOT,Aebi Schmidt Uk Limited,A017053,20/09/2017,1351197,381.7,Non Scheduled Maintenance - Parts
North West Leicestershire District Council,31UH,Information Technology,ICT Services,ICT,GE Capital Equipment Finance Ltd,A017429,06/09/2017,1350700,339.08,Equipment Operating Leases
North West Leicestershire District Council,31UH,Street Management,Environment Transport,ENOT,Geesink Norba Limited,A017895,06/09/2017,1350710,777.01,Repairs - Parts
North West Leicestershire District Council,31UH,Information Technology,ICT Services,ICT,Orange Plc,A018592,06/09/2017,1350883,3405.44,Mobile Telephones
North West Leicestershire District Council,31UH,Leisure & Culture,Sport & Physical Activity,SPA,Apse,A018837,20/09/2017,1350352,3913,Membership Fees
North West Leicestershire District Council,31UH,Finance,Financial Planning,FINPLA,Ellistown And Battleflat Parish Council,A021576,27/09/2017,1351980,31250,Precepts
North West Leicestershire District Council,31UH,Property Services,Property Facilities Management,PROPFM,Geze Uk Limited,A023130,27/09/2017,1351714,315,Lift Repairs and maintenance
North West Leicestershire District Council,31UH,Information Technology,ICT Services,ICT,Nviron Limited,A023640,06/09/2017,1350760,894,Admin Equipment - Hire/Rental
North West Leicestershire District Council,31UH,Street Management,Environment - Street Scene,ESS,County Drains Leicester Ltd,A024295,13/09/2017,1351070,417,General Repairs
North West Leicestershire District Council,31UH,Housing Repairs,HRA Housing Repairs & Maintenance,HRAHRM,Hays Human Resources,A024378,06/09/2017,1350670,1303.8,Agency Staff
North West Leicestershire District Council,31UH,Housing Repairs,HRA Housing Repairs & Maintenance,HRAHRM,Hays Human Resources,A024378,06/09/2017,1350671,1192.5,Agency Staff
North West Leicestershire District Council,31UH,Housing Repairs,HRA Housing Repairs & Maintenance,HRAHRM,Hays Human Resources,A024378,06/09/2017,1350672,1462.8,Agency Staff
North West Leicestershire District Council,31UH,Leisure Centres,Hermitage Leisure Centre,HLC,Gladstone MRM Ltd,A024642,27/09/2017,1351708,20920,Service Contracts
North West Leicestershire District Council,31UH,Street Management,Environment Waste Management,ENOWM,Straight Plc,A024906,06/09/2017,1350627,13744.5,General Materials
North West Leicestershire District Council,31UH,Communications,Corporate - Communications,CP,Reflec Signs & Graphics Ltd,A025348,06/09/2017,1350625,360,Event Expenditure
North West Leicestershire District Council,31UH,Housing Repairs,HRA Housing Repairs & Maintenance,HRAHRM,NICEIC Sales,A026251,27/09/2017,1352020,427.6,Legal & Professional Services
North West Leicestershire District Council,31UH,Leisure Centres,Hermitage Leisure Centre,HLC,Stathams Coaches Ltd,A027406,06/09/2017,1350743,800,Summer/School Holiday Activities
North West Leicestershire District Council,31UH,Planning & Development,Building Control,EBC,Leicestershire County Council,A027423,06/09/2017,1350699,2800,Search Fees-LCC
North West Leicestershire District Council,31UH,Leisure & Culture,Cultural Services TIC,CULTIC,Ashby Dramatic Society Trust,A027431,27/09/2017,1351736,270,Ticket Sales
North West Leicestershire District Council,31UH,Leisure Centres,Hermitage Leisure Centre,HLC,Measham Leisure Centre,A027454,06/09/2017,1350742,2504.08,Measham LC Lifestyle DD
North West Leicestershire District Council,31UH,Leisure Centres,Hermitage Leisure Centre,HLC,Measham Leisure Centre,A027454,13/09/2017,1351047,2312.42,Measham LC Lifestyle DD
North West Leicestershire District Council,31UH,Leisure & Culture,Sport & Physical Activity,SPA,Measham Leisure Centre,A027454,20/09/2017,1351099,467.63,Local Sports Alliance
North West Leicestershire District Council,31UH,Finance,Financial Planning,FINPLA,CIPFA,A027467,20/09/2017,1351442,1250,Training Course
North West Leicestershire District Council,31UH,Environmental Health,Environmental Health & Licensing,EEHL,Vetspeed Ltd,A027546,20/09/2017,1351429,354.78,Disposal Costs- Animal Origin
North West Leicestershire District Council,31UH,Corporate Director,Human Resources,HR,The Disclosure & Barring Service,A027625,12/09/2017,1351221,621,CRB Checks
North West Leicestershire District Council,31UH,Housing Repairs,HRA Housing Repairs & Maintenance,HRAHRM,Orbis Property Protection Ltd,A028149,13/09/2017,1351104,453,Void Property Clearance Services
North West Leicestershire District Council,31UH,Housing Repairs,HRA Housing Repairs & Maintenance,HRAHRM,Orbis Property Protection Ltd,A028149,13/09/2017,1351108,347,Void Property Clearance Services
North West Leicestershire District Council,31UH,Housing Repairs,HRA Housing Repairs & Maintenance,HRAHRM,Orbis Property Protection Ltd,A028149,13/09/2017,1351109,358,Void Property Clearance Services
North West Leicestershire District Council,31UH,Housing Repairs,HRA Housing Repairs & Maintenance,HRAHRM,Orbis Property Protection Ltd,A028149,13/09/2017,1351111,340.5,Void Property Clearance Services
North West Leicestershire District Council,31UH,Housing Repairs,HRA Housing Repairs & Maintenance,HRAHRM,Orbis Property Protection Ltd,A028149,13/09/2017,1351119,286,Void Property Clearance Services
North West Leicestershire District Council,31UH,Housing Repairs,HRA Housing Repairs & Maintenance,HRAHRM,Orbis Property Protection Ltd,A028149,13/09/2017,1351371,370,Void Property Clearance Services
North West Leicestershire District Council,31UH,Housing Repairs,HRA Housing Repairs & Maintenance,HRAHRM,Orbis Property Protection Ltd,A028149,13/09/2017,1351376,291,Void Property Clearance Services
North West Leicestershire District Council,31UH,Housing Repairs,HRA Housing Repairs & Maintenance,HRAHRM,Orbis Property Protection Ltd,A028149,13/09/2017,1351378,490,Void Property Clearance Services
North West Leicestershire District Council,31UH,Housing Repairs,HRA Housing Repairs & Maintenance,HRAHRM,Orbis Property Protection Ltd,A028149,13/09/2017,1351381,975,Void Property Clearance Services
North West Leicestershire District Council,31UH,Housing Repairs,HRA Housing Repairs & Maintenance,HRAHRM,Orbis Property Protection Ltd,A028149,13/09/2017,1351382,383,Void Property Clearance Services
North West Leicestershire District Council,31UH,Chief Exec,Chief Executive,CHEX,Peter Brett Associates T/a Roger Tym & Partners,A028258,06/09/2017,1350855,4500,Consultants Fees
North West Leicestershire District Council,31UH,Housing Repairs,HRA Housing Repairs & Maintenance,HRAHRM,TECSERV UK LIMITED,A028261,06/09/2017,1350984,870,Door Entry Systems
North West Leicestershire District Council,31UH,Property Services,Property Facilities Management,PROPFM,TECSERV UK LIMITED,A028261,27/09/2017,1351844,630.22,Door Entry Systems
North West Leicestershire District Council,31UH,Property Services,Property Facilities Management,PROPFM,TECSERV UK LIMITED,A028261,27/09/2017,1351946,303.57,Door Entry Systems
North West Leicestershire District Council,31UH,Finance,Financial Planning,FINPLA,"Leicester, Leicestershire and Rutland Combined Fire Authority",A028339,12/09/2017,1351218,204100,Precepts
North West Leicestershire District Council,31UH,Finance,Financial Planning,FINPLA,Department for Communities & Local Government,A028518,12/09/2017,1351216,2268114,Subsidy Receipts & Repayments
North West Leicestershire District Council,31UH,Legal & Democratic,Legal Services,LDLS,Venn Group Limited,A028530,06/09/2017,1350973,780.3,Agency Staff
North West Leicestershire District Council,31UH,Corporate Director,Human Resources,HR,Specsavers Corporate Eyecare,A028625,27/09/2017,1351841,525,Eye Care Vouchers
North West Leicestershire District Council,31UH,Street Management,Environment - Street Scene,ESS,Metric Group Ltd (Sales),A028996,06/09/2017,1350771,252,Subscriptions
North West Leicestershire District Council,31UH,Street Management,Environment - Street Scene,ESS,Metric Group Ltd (Sales),A028996,06/09/2017,1348821,2528.45,Training Course
North West Leicestershire District Council,31UH,Street Management,Environment - Street Scene,ESS,Bemrose Booth,A029332,06/09/2017,1350845,-340,Stationery
North West Leicestershire District Council,31UH,Street Management,Environment - Street Scene,ESS,Bemrose Booth,A029332,06/09/2017,1350844,1016,Stationery
North West Leicestershire District Council,31UH,Street Management,Environment - Street Scene,ESS,Bemrose Booth,A029332,06/09/2017,1350846,320,Stationery
North West Leicestershire District Council,31UH,Leisure Centres,Hermitage Bar & Catering,HLBC,Siemens Financial Services Ltd,A029510,06/09/2017,1350740,617.76,Equipment Operating Leases
North West Leicestershire District Council,31UH,Legal & Democratic,Legal Services,LDLS,Martin Lee & Co,A030613,13/09/2017,1351370,2400,External Legal Fees & Advice
North West Leicestershire District Council,31UH,Street Management,Environment Waste Management,ENOWM,Groundsman Tools & Supplies,A030744,20/09/2017,1351144,1837,General Materials
North West Leicestershire District Council,31UH,Finance,Revenues,REVS,Firmstep,A030931,27/09/2017,1352016,3150,Computing
North West Leicestershire District Council,31UH,Finance,Financial Planning,FINPLA,Cornwall  Council,A031018,26/09/2017,1352007,34280.82,Policy Lending
North West Leicestershire District Council,31UH,Finance,Revenues,REVS,Bristow & Sutor,A031060,06/09/2017,1350749,300,Enforcement Agent Fees
North West Leicestershire District Council,31UH,Finance,Revenues,REVS,Bristow & Sutor,A031060,13/09/2017,1351173,322.66,Enforcement Agent Fees
North West Leicestershire District Council,31UH,Legal & Democratic,Legal Services,LDLS,Bevan Brittan,A031366,13/09/2017,1351182,6569.1,Legal & Professional Services
North West Leicestershire District Council,31UH,Communications,Corporate - Customer Services,CS,Neopost Finance Limited,A031590,06/09/2017,1350675,2552.28,Equipment Operating Leases
North West Leicestershire District Council,31UH,Street Management,Environment Transport,ENOT,Stertil UK Ltd,A031644,13/09/2017,1351066,436.79,Operational Equipment - Rep & Maint
North West Leicestershire District Council,31UH,Housing Repairs,HRA Housing Repairs & Maintenance,HRAHRM,Laker BMS Ltd,A031787,06/09/2017,1350976,2945,Housing Repairs
North West Leicestershire District Council,31UH,Housing Repairs,HRA Housing Repairs & Maintenance,HRAHRM,Laker BMS Ltd,A031787,06/09/2017,1350977,3969.69,Housing Repairs
North West Leicestershire District Council,31UH,Housing Repairs,HRA Housing Repairs & Maintenance,HRAHRM,Laker BMS Ltd,A031787,06/09/2017,1350978,4531.26,Housing Repairs
North West Leicestershire District Council,31UH,Housing Repairs,HRA Housing Repairs & Maintenance,HRAHRM,Laker BMS Ltd,A031787,06/09/2017,1350979,1962.25,Housing Repairs
North West Leicestershire District Council,31UH,Housing Repairs,HRA Housing Repairs & Maintenance,HRAHRM,Laker BMS Ltd,A031787,06/09/2017,1350980,438.07,Housing Repairs
North West Leicestershire District Council,31UH,Housing Repairs,HRA Housing Repairs & Maintenance,HRAHRM,Laker BMS Ltd,A031787,06/09/2017,1350981,9995,Housing Repairs
North West Leicestershire District Council,31UH,Housing Repairs,HRA Housing Repairs & Maintenance,HRAHRM,Laker BMS Ltd,A031787,06/09/2017,1350982,9000,Housing Repairs
North West Leicestershire District Council,31UH,Housing Repairs,HRA Housing Repairs & Maintenance,HRAHRM,Laker BMS Ltd,A031787,20/09/2017,1351659,1322.5,Housing Repairs
North West Leicestershire District Council,31UH,Housing Repairs,HRA Housing Repairs & Maintenance,HRAHRM,Laker BMS Ltd,A031787,20/09/2017,1351660,1067.6,Housing Repairs
North West Leicestershire District Council,31UH,Housing Repairs,HRA Housing Repairs & Maintenance,HRAHRM,Laker BMS Ltd,A031787,20/09/2017,1351661,1255.63,Housing Repairs
North West Leicestershire District Council,31UH,Housing Repairs,HRA Housing Repairs & Maintenance,HRAHRM,Laker BMS Ltd,A031787,20/09/2017,1351662,3284,Housing Repairs
North West Leicestershire District Council,31UH,Housing Repairs,HRA Housing Repairs & Maintenance,HRAHRM,Laker BMS Ltd,A031787,20/09/2017,1351663,318.6,Housing Repairs
North West Leicestershire District Council,31UH,Housing Repairs,HRA Housing Repairs & Maintenance,HRAHRM,Laker BMS Ltd,A031787,20/09/2017,1351664,1118,Housing Repairs
North West Leicestershire District Council,31UH,Housing Repairs,HRA Housing Repairs & Maintenance,HRAHRM,Laker BMS Ltd,A031787,20/09/2017,1351665,2280.25,Housing Repairs
North West Leicestershire District Council,31UH,Housing Repairs,HRA Housing Repairs & Maintenance,HRAHRM,Laker BMS Ltd,A031787,20/09/2017,1351666,1128.37,Housing Repairs
North West Leicestershire District Council,31UH,Housing Repairs,HRA Housing Repairs & Maintenance,HRAHRM,Laker BMS Ltd,A031787,20/09/2017,1351667,1815.62,Housing Repairs
North West Leicestershire District Council,31UH,Housing Repairs,HRA Housing Repairs & Maintenance,HRAHRM,Laker BMS Ltd,A031787,20/09/2017,1351668,1876.78,Housing Repairs
North West Leicestershire District Council,31UH,Street Management,Environment Transport,ENOT,Lee Wells Autobodies Ltd,A031849,20/09/2017,1351492,280,Non Insurance Damage
North West Leicestershire District Council,31UH,Street Management,Environment Transport,ENOT,Lee Wells Autobodies Ltd,A031849,27/09/2017,1351775,455,Non Insurance Damage
North West Leicestershire District Council,31UH,Environmental Health,Environmental Health & Licensing,EEHL,Public Health England,A032001,13/09/2017,1351085,319.55,Private & Pool Water Sampling
North West Leicestershire District Council,31UH,Information Technology,ICT Services,ICT,Cuttlefish Multimedia Ltd,A032102,06/09/2017,1350793,1718.33,Website Maintenance
North West Leicestershire District Council,31UH,Street Management,Environment Transport,ENOT,Watling JCB Ltd,A032114,13/09/2017,1351207,972,Scheduled Servicing - Parts
North West Leicestershire District Council,31UH,Street Management,Environment Transport,ENOT,Pakawaste Ltd,A032627,06/09/2017,1350721,1012.95,Operational Equipment
North West Leicestershire District Council,31UH,Housing Repairs,HRA Housing Repairs & Maintenance,HRAHRM,National Grid Gas Plc,A032629,06/09/2017,1350998,630,Utilities- connection services
North West Leicestershire District Council,31UH,Information Technology,ICT Services,ICT,Freedom Communications (UK) Ltd,A032826,13/09/2017,1351090,253,Administrative Equipment
North West Leicestershire District Council,31UH,Information Technology,ICT Services,ICT,Freedom Communications (UK) Ltd,A032826,27/09/2017,1351778,1543.32,Admin Equipment - Maintenance
North West Leicestershire District Council,31UH,Planning & Development,Environment Community Planning,ECP,GovNet Communications,A032865,06/09/2017,1350707,395,Training Expenses
North West Leicestershire District Council,31UH,Leisure Centres,Hood Park Leisure Centre,HPLC,Lifesavers Direct,A033109,06/09/2017,1350851,648,Training Course
North West Leicestershire District Council,31UH,Environmental Health,Environmental Health & Licensing,EEHL,Institute of Licensing (Events) Limited,A033316,13/09/2017,1351042,840,Training Expenses
North West Leicestershire District Council,31UH,Finance,Exchequer Services,EXCH,Total Gas & Power,A033385,12/09/2017,1351229,15485.25,Electricity
North West Leicestershire District Council,31UH,Finance,Exchequer Services,EXCH,Total Gas & Power,A033385,21/09/2017,1351730,16315.9,Electricity
North West Leicestershire District Council,31UH,Planning & Development,Environment Planning Policy,EPP,RICS,A033386,20/09/2017,1351494,1215,Subscriptions
North West Leicestershire District Council,31UH,Information Technology,ICT Services,ICT,Alfred Willday & Son Ltd,A033406,27/09/2017,1351750,610,Consumable Materials
North West Leicestershire District Council,31UH,Communications,Corporate - Communications,CP,4imprint Direct Limited,A033612,20/09/2017,1351464,1065,Event Expenditure
North West Leicestershire District Council,31UH,Leisure Centres,Hermitage Leisure Centre,HLC,Vocals Entertainment Ltd,A033748,27/09/2017,1351711,950,Summer/School Holiday Activities
North West Leicestershire District Council,31UH,Leisure & Culture,Sport & Physical Activity,SPA,Newbridge High School,A033936,27/09/2017,1351533,1000,Street games
North West Leicestershire District Council,31UH,Leisure Centres,Hermitage Leisure Centre,HLC,Newbridge High School,A033936,27/09/2017,1351789,330,Room Hire
North West Leicestershire District Council,31UH,Housing,HRA Housing Management,HRAHM,HMCTS,A033956,21/09/2017,1351728,4671,Legal & Professional Services
North West Leicestershire District Council,31UH,Street Management,Environment Transport,ENOT,S & B Tyres Limited,A034071,06/09/2017,1350863,694,Transport Costs - Tyres
North West Leicestershire District Council,31UH,Street Management,Environment Transport,ENOT,S & B Tyres Limited,A034071,27/09/2017,1351845,440,Transport Costs - Tyres
North West Leicestershire District Council,31UH,Housing,HRA Performance & Business Support,HRAPBS,TextAnywhere Limited,A034160,20/09/2017,1350678,722.5,SMS Credits
North West Leicestershire District Council,31UH,Property Services,Property Facilities Management,PROPFM,Valuation Office Agency,A034291,13/09/2017,1351277,1228,Legal Fees
North West Leicestershire District Council,31UH,Leisure Centres,Hermitage Leisure Centre,HLC,ENER.G Combined Power Ltd,A034390,13/09/2017,1351044,425,General Repairs
North West Leicestershire District Council,31UH,Planning & Development,Environment - Town Centre/CCTV,ECCTV,Coalville Market Traders Promotion Group,A034522,27/09/2017,1351768,457.6,Rent - Stalls
North West Leicestershire District Council,31UH,Corporate Director,Human Resources,HR,GatenbySanderson Limited,A034524,06/09/2017,1350701,1995,Agency Staff
North West Leicestershire District Council,31UH,Corporate Director,Human Resources,HR,GatenbySanderson Limited,A034524,06/09/2017,1350722,9103.5,Agency Staff
North West Leicestershire District Council,31UH,Corporate Director,Human Resources,HR,GatenbySanderson Limited,A034524,06/09/2017,1350799,3034.5,Agency Staff
North West Leicestershire District Council,31UH,Corporate Director,Human Resources,HR,GatenbySanderson Limited,A034524,13/09/2017,1351093,4410,Agency Staff
North West Leicestershire District Council,31UH,Corporate Director,Human Resources,HR,GatenbySanderson Limited,A034524,27/09/2017,1351860,3390.1,Agency Staff
North West Leicestershire District Council,31UH,Corporate Director,Human Resources,HR,GatenbySanderson Limited,A034524,27/09/2017,1351949,4260,Agency Staff
North West Leicestershire District Council,31UH,Information Technology,ICT Services,ICT,ANS Group Plc,A034753,13/09/2017,1351018,5522.33,Admin Equipment - Maintenance
North West Leicestershire District Council,31UH,Information Technology,ICT Services,ICT,ANS Group Plc,A034753,13/09/2017,1351019,9156.78,Admin Equipment - Maintenance
North West Leicestershire District Council,31UH,Information Technology,ICT Services,ICT,ANS Group Plc,A034753,27/09/2017,1351705,2025,Contract Payments (Other) Ext
North West Leicestershire District Council,31UH,Street Management,Environment Transport,ENOT,Sherwood Truck and Van Limited,A035120,20/09/2017,1351488,495.96,Repairs - Parts
North West Leicestershire District Council,31UH,Finance,Financial Planning,FINPLA,KPMG LLP,A035156,20/09/2017,1351697,14912.5,External Audit Fees
North West Leicestershire District Council,31UH,Street Management,Environment Transport,ENOT,Malvern Tyres,A035175,20/09/2017,1351491,597.22,Transport Costs - Tyres
North West Leicestershire District Council,31UH,Property Services,Property Facilities Management,PROPFM,Ecotag Limited,A035225,13/09/2017,1351125,390,Licences
North West Leicestershire District Council,31UH,Planning & Development,Environment Community Planning,ECP,Solon Security,A035272,06/09/2017,1350803,2662.25,Security Materials
North West Leicestershire District Council,31UH,Street Management,Environment Transport,ENOT,Mertrux Ltd,A035291,06/09/2017,1350697,811.44,Non Scheduled Maintenance - Parts
North West Leicestershire District Council,31UH,Street Management,Environment Transport,ENOT,Mertrux Ltd,A035291,06/09/2017,1350698,-811.44,Non Scheduled Maintenance - Parts
North West Leicestershire District Council,31UH,Street Management,Environment Transport,ENOT,Mertrux Ltd,A035291,20/09/2017,1351459,320.46,Non Scheduled Maintenance - Parts
North West Leicestershire District Council,31UH,Leisure Centres,Hermitage Leisure Centre,HLC,City Electrical Factors Ltd,A035306,27/09/2017,1351550,349.8,Electrical Materials
North West Leicestershire District Council,31UH,Planning & Development,Environment Community Planning,ECP,ACM Training,A035344,27/09/2017,1351552,278,Training Expenses
North West Leicestershire District Council,31UH,Housing Repairs,HRA Housing Repairs & Maintenance,HRAHRM,Ward Recycling,A035471,06/09/2017,1350714,511.72,Tipping Charges
North West Leicestershire District Council,31UH,Housing Repairs,HRA Housing Repairs & Maintenance,HRAHRM,Ward Recycling,A035471,06/09/2017,1350972,1104.04,Tipping Charges
North West Leicestershire District Council,31UH,Housing Repairs,HRA Housing Repairs & Maintenance,HRAHRM,Ward Recycling,A035471,13/09/2017,1351208,543.95,Tipping Charges
North West Leicestershire District Council,31UH,Housing Repairs,HRA Housing Repairs & Maintenance,HRAHRM,Ward Recycling,A035471,27/09/2017,1351863,637.48,Tipping Charges
North West Leicestershire District Council,31UH,Housing Repairs,HRA Housing Repairs & Maintenance,HRAHRM,Ward Recycling,A035471,27/09/2017,1351868,666.51,Tipping Charges
North West Leicestershire District Council,31UH,Corporate Director,Human Resources,HR,Arnold Clark Vehicle Management,A035549,20/09/2017,1351569,350.52,Vehicle Leasing
North West Leicestershire District Council,31UH,Corporate Director,Human Resources,HR,Arnold Clark Vehicle Management,A035549,20/09/2017,1351673,513.67,Vehicle Leasing
North West Leicestershire District Council,31UH,Finance,Financial Planning,FINPLA,LAVAT Consulting Limited,A035908,20/09/2017,1351437,2000,Subscriptions
North West Leicestershire District Council,31UH,Housing,HRA Performance & Business Support,HRAPBS,Print Search Chester Limited,A036087,06/09/2017,1348091,336.5,Printing Services
North West Leicestershire District Council,31UH,Housing,HRA Performance & Business Support,HRAPBS,Print Search Chester Limited,A036087,06/09/2017,1348437,675,Printing Services
North West Leicestershire District Council,31UH,Housing,HRA Performance & Business Support,HRAPBS,Print Search Chester Limited,A036087,06/09/2017,1349951,1035.11,Printing Services
North West Leicestershire District Council,31UH,Street Management,Environment Transport,ENOT,Taylor Engineering & Fabrications Ltd,A036178,13/09/2017,1351235,538.82,Non Scheduled Maintenance - Parts
North West Leicestershire District Council,31UH,Street Management,Environment Transport,ENOT,WasteParts UK Limited,A036236,13/09/2017,1351024,263,Non Scheduled Maintenance - Parts
North West Leicestershire District Council,31UH,Property Services,Property Facilities Management,PROPFM,University of Leicester,A036615,27/09/2017,1351769,1050,Asset Protection
North West Leicestershire District Council,31UH,Finance,Exchequer Services,EXCH,Comensura Limited,A036958,06/09/2017,1350967,31416.32,Agency Staff
North West Leicestershire District Council,31UH,Finance,Exchequer Services,EXCH,Comensura Limited,A036958,13/09/2017,1351073,33659.02,Agency Staff
North West Leicestershire District Council,31UH,Finance,Exchequer Services,EXCH,Comensura Limited,A036958,20/09/2017,1351453,23661.34,Agency Staff
North West Leicestershire District Council,31UH,Finance,Exchequer Services,EXCH,Comensura Limited,A036958,27/09/2017,1351870,45071.21,Agency Staff
North West Leicestershire District Council,31UH,Finance,Financial Planning,FINPLA,Salix Finance,A038252,12/09/2017,1351222,3980.06,Finance Lease Payment
North West Leicestershire District Council,31UH,Economic Development,Business Focus Group,BFG,Kerching Retail Limited,A038292,20/09/2017,1351570,2333.5,Town Centre & Area Regeneration
North West Leicestershire District Council,31UH,Housing Repairs,HRA Housing Repairs & Maintenance,HRAHRM,Emperor Scaffolding Limited,A038405,06/09/2017,1350633,1175,Hire Of Operational Equipment
North West Leicestershire District Council,31UH,Housing Repairs,HRA Housing Repairs & Maintenance,HRAHRM,Emperor Scaffolding Limited,A038405,06/09/2017,1350634,300,Hire Of Operational Equipment
North West Leicestershire District Council,31UH,Housing Repairs,HRA Housing Repairs & Maintenance,HRAHRM,Emperor Scaffolding Limited,A038405,06/09/2017,1350635,600,Hire Of Operational Equipment
North West Leicestershire District Council,31UH,Housing Repairs,HRA Housing Repairs & Maintenance,HRAHRM,Emperor Scaffolding Limited,A038405,06/09/2017,1350637,300,Hire Of Operational Equipment
North West Leicestershire District Council,31UH,Housing Repairs,HRA Housing Repairs & Maintenance,HRAHRM,Emperor Scaffolding Limited,A038405,06/09/2017,1350638,650,Hire Of Operational Equipment
North West Leicestershire District Council,31UH,Housing Repairs,HRA Housing Repairs & Maintenance,HRAHRM,Emperor Scaffolding Limited,A038405,20/09/2017,1351503,350,Hire Of Operational Equipment
North West Leicestershire District Council,31UH,Housing Repairs,HRA Housing Repairs & Maintenance,HRAHRM,Emperor Scaffolding Limited,A038405,20/09/2017,1351504,300,Hire Of Operational Equipment
North West Leicestershire District Council,31UH,Housing Repairs,HRA Housing Repairs & Maintenance,HRAHRM,Emperor Scaffolding Limited,A038405,20/09/2017,1351505,375,Hire Of Operational Equipment
North West Leicestershire District Council,31UH,Housing Repairs,HRA Housing Repairs & Maintenance,HRAHRM,Emperor Scaffolding Limited,A038405,20/09/2017,1351506,400,Hire Of Operational Equipment
North West Leicestershire District Council,31UH,Housing Repairs,HRA Housing Repairs & Maintenance,HRAHRM,Emperor Scaffolding Limited,A038405,20/09/2017,1351507,750,Hire Of Operational Equipment
North West Leicestershire District Council,31UH,Housing Repairs,HRA Housing Repairs & Maintenance,HRAHRM,Emperor Scaffolding Limited,A038405,20/09/2017,1351508,350,Hire Of Operational Equipment
North West Leicestershire District Council,31UH,Housing,HRA Housing Management,HRAHM,Western Power Distribution,A038499,06/09/2017,1350674,5406.68,Utilities- connection services
North West Leicestershire District Council,31UH,Finance,Financial Planning,FINPLA,Hugglescote & Donington Le Heath,A038616,06/09/2017,1350899,46883.5,Precepts
North West Leicestershire District Council,31UH,Finance,Financial Planning,FINPLA,Hugglescote & Donington Le Heath,A038616,27/09/2017,1352002,46883.5,Precepts
North West Leicestershire District Council,31UH,Finance,Financial Planning,FINPLA,Whitwick Parish Council,A038617,27/09/2017,1352003,104619.5,Precepts
North West Leicestershire District Council,31UH,Street Management,Environment Transport,ENOT,Innovative Safety Systems Limited,A038664,27/09/2017,1351734,310,Operational Equipment
North West Leicestershire District Council,31UH,Corporate Director,Human Resources,HR,Health Management Ltd,A038840,06/09/2017,1351003,615,Occupational Health Services
North West Leicestershire District Council,31UH,Finance,Financial Planning,FINPLA,Scottish Widows Investment Partnerhiip,A039247,26/09/2017,1352012,5900000,Policy Lending
North West Leicestershire District Council,31UH,Finance,Financial Planning,FINPLA,Goldman Sachs Money Market Fund,A039248,26/09/2017,1352014,300000,Policy Lending
North West Leicestershire District Council,31UH,Finance,Financial Planning,FINPLA,Blackrock Cash Management,A039249,26/09/2017,1352013,4500000,Policy Lending
North West Leicestershire District Council,31UH,Leisure Centres,Hood Park Leisure Centre,HPLC,Kingsfield Computer Products Ltd,A039732,13/09/2017,1351065,272.25,Operational Equipment
North West Leicestershire District Council,31UH,Street Management,Environment - Street Scene,ESS,EPT SERVICES,A039764,20/09/2017,1351409,600,Operational Equipment
North West Leicestershire District Council,31UH,Housing Repairs,HRA Housing Repairs & Maintenance,HRAHRM,Fire Proof Ltd,A039911,20/09/2017,1351671,656.43,Fire Protection Services
North West Leicestershire District Council,31UH,Property Services,Property Facilities Management,PROPFM,Fire Proof Ltd,A039911,20/09/2017,1351403,1002.46,Fire Protection Services
North West Leicestershire District Council,31UH,Leisure Centres,Hermitage Leisure Centre,HLC,LWC - Birmingham,A039915,13/09/2017,1351130,-1312,Bar Provisions
North West Leicestershire District Council,31UH,Leisure Centres,Hermitage Bar & Catering,HLBC,LWC - Birmingham,A039915,13/09/2017,1351187,7710.32,Bar Provisions
North West Leicestershire District Council,31UH,Housing Repairs,HRA Housing Repairs & Maintenance,HRAHRM,Lovell Partnerships Ltd,A039973,06/09/2017,1350692,2684.98,Decent Homes
North West Leicestershire District Council,31UH,Housing Repairs,HRA Housing Repairs & Maintenance,HRAHRM,Lovell Partnerships Ltd,A039973,06/09/2017,1350720,129265.04,Decent Homes
North West Leicestershire District Council,31UH,Housing Repairs,HRA Housing Repairs & Maintenance,HRAHRM,Kier Services Maintenance East Ltd,A039980,13/09/2017,1351170,29097.34,Decent Homes
North West Leicestershire District Council,31UH,Housing Repairs,HRA Housing Repairs & Maintenance,HRAHRM,Kier Services Maintenance East Ltd,A039980,13/09/2017,1351201,30870.18,Decent Homes
North West Leicestershire District Council,31UH,Housing Repairs,HRA Housing Repairs & Maintenance,HRAHRM,Kier Services Maintenance East Ltd,A039980,06/09/2017,1350986,6834.92,Decent Homes
North West Leicestershire District Council,31UH,Housing Repairs,HRA Housing Repairs & Maintenance,HRAHRM,Kier Services Maintenance East Ltd,A039980,13/09/2017,1351393,3671.9,Decent Homes
North West Leicestershire District Council,31UH,Housing Repairs,HRA Housing Repairs & Maintenance,HRAHRM,Kier Services Maintenance East Ltd,A039980,13/09/2017,1351394,3690.2,Decent Homes
North West Leicestershire District Council,31UH,Housing Repairs,HRA Housing Repairs & Maintenance,HRAHRM,Kier Services Maintenance East Ltd,A039980,13/09/2017,1351395,3690.2,Decent Homes
North West Leicestershire District Council,31UH,Housing Repairs,HRA Housing Repairs & Maintenance,HRAHRM,Kier Services Maintenance East Ltd,A039980,13/09/2017,1351396,5260.86,Decent Homes
North West Leicestershire District Council,31UH,Housing Repairs,HRA Housing Repairs & Maintenance,HRAHRM,Kier Services Maintenance East Ltd,A039980,13/09/2017,1351397,4256.85,Decent Homes
North West Leicestershire District Council,31UH,Housing Repairs,HRA Housing Repairs & Maintenance,HRAHRM,Kier Services Maintenance East Ltd,A039980,13/09/2017,1351398,11384.3,Decent Homes
North West Leicestershire District Council,31UH,Housing Repairs,HRA Housing Repairs & Maintenance,HRAHRM,Kier Services Maintenance East Ltd,A039980,13/09/2017,1351399,1560.59,Decent Homes
North West Leicestershire District Council,31UH,Housing Repairs,HRA Housing Repairs & Maintenance,HRAHRM,Kier Services Maintenance East Ltd,A039980,13/09/2017,1351400,5260.14,Decent Homes
North West Leicestershire District Council,31UH,Housing Repairs,HRA Housing Repairs & Maintenance,HRAHRM,Kier Services Maintenance East Ltd,A039980,13/09/2017,1351401,2506.14,Decent Homes
North West Leicestershire District Council,31UH,Housing Repairs,HRA Housing Repairs & Maintenance,HRAHRM,Kier Services Maintenance East Ltd,A039980,13/09/2017,1351402,9568.71,Decent Homes
North West Leicestershire District Council,31UH,Street Management,Environment - Street Scene,ESS,Mallard Consultancy Ltd,A039987,20/09/2017,1351071,990,Subscriptions
North West Leicestershire District Council,31UH,Housing,HRA Performance & Business Support,HRAPBS,Kaplan Financial,A040435,06/09/2017,1350623,1148.34,Training Expenses
North West Leicestershire District Council,31UH,Information Technology,ICT Services,ICT,Canon UK Ltd,A040459,06/09/2017,1350745,481.05,Equipment Operating Leases
North West Leicestershire District Council,31UH,Information Technology,ICT Services,ICT,Canon UK Ltd,A040459,06/09/2017,1350753,2303.01,Equipment rental
North West Leicestershire District Council,31UH,Information Technology,ICT Services,ICT,Canon UK Ltd,A040459,13/09/2017,1351266,1474.38,Equipment Operating Leases
North West Leicestershire District Council,31UH,Information Technology,ICT Services,ICT,Canon UK Ltd,A040459,13/09/2017,1351267,268.81,Equipment Operating Leases
North West Leicestershire District Council,31UH,Information Technology,ICT Services,ICT,Canon UK Ltd,A040459,13/09/2017,1351268,268.81,Equipment Operating Leases
North West Leicestershire District Council,31UH,Information Technology,ICT Services,ICT,Canon UK Ltd,A040459,13/09/2017,1351269,268.81,Equipment Operating Leases
North West Leicestershire District Council,31UH,Housing Repairs,HRA Housing Repairs & Maintenance,HRAHRM,Sure Maintenance Ltd,A040460,06/09/2017,1350869,7680.96,Plumbing & Heating
North West Leicestershire District Council,31UH,Housing Repairs,HRA Housing Repairs & Maintenance,HRAHRM,Sure Maintenance Ltd,A040460,06/09/2017,1350870,1800,Plumbing & Heating
North West Leicestershire District Council,31UH,Housing Repairs,HRA Housing Repairs & Maintenance,HRAHRM,Sure Maintenance Ltd,A040460,13/09/2017,1351168,750,Plumbing & Heating
North West Leicestershire District Council,31UH,Housing Repairs,HRA Housing Repairs & Maintenance,HRAHRM,Sure Maintenance Ltd,A040460,20/09/2017,1351432,3240,Plumbing & Heating
North West Leicestershire District Council,31UH,Housing Repairs,HRA Housing Repairs & Maintenance,HRAHRM,Sure Maintenance Ltd,A040460,20/09/2017,1351433,2053.33,Plumbing & Heating
North West Leicestershire District Council,31UH,Housing Repairs,HRA Housing Repairs & Maintenance,HRAHRM,Sure Maintenance Ltd,A040460,20/09/2017,1351434,8107.68,Plumbing & Heating
North West Leicestershire District Council,31UH,Housing Repairs,HRA Housing Repairs & Maintenance,HRAHRM,Sure Maintenance Ltd,A040460,20/09/2017,1351471,18983.85,Plumbing & Heating
North West Leicestershire District Council,31UH,Housing Repairs,HRA Housing Repairs & Maintenance,HRAHRM,Sure Maintenance Ltd,A040460,06/09/2017,1351001,1609.8,Plumbing & Heating
North West Leicestershire District Council,31UH,Housing Repairs,HRA Housing Repairs & Maintenance,HRAHRM,Sure Maintenance Ltd,A040460,13/09/2017,1351372,2011.3,Plumbing & Heating
North West Leicestershire District Council,31UH,Housing Repairs,HRA Housing Repairs & Maintenance,HRAHRM,Sure Maintenance Ltd,A040460,13/09/2017,1351375,1835.2,Plumbing & Heating
North West Leicestershire District Council,31UH,Housing Repairs,HRA Housing Repairs & Maintenance,HRAHRM,Sure Maintenance Ltd,A040460,20/09/2017,1351649,1835.2,Plumbing & Heating
North West Leicestershire District Council,31UH,Street Management,Environment Transport,ENOT,Trade Price Windscreens Ltd,A040486,13/09/2017,1351087,391,Non Insurance Damage
North West Leicestershire District Council,31UH,Property Services,Property Facilities Management,PROPFM,ACE Environmental Engineering Ltd,A040690,06/09/2017,1349612,266,Ventilation/Air Con repairs and maintenance
North West Leicestershire District Council,31UH,Property Services,Property Facilities Management,PROPFM,ACE Environmental Engineering Ltd,A040690,06/09/2017,1350801,468.59,General Repairs
North West Leicestershire District Council,31UH,Property Services,Property Facilities Management,PROPFM,ACE Environmental Engineering Ltd,A040690,13/09/2017,1351209,457.36,General Repairs
North West Leicestershire District Council,31UH,Property Services,Property Facilities Management,PROPFM,Admiral Cleaning Supplies Ltd,A040930,06/09/2017,1350731,745.76,Cleaning & Domestic Equipment
North West Leicestershire District Council,31UH,Leisure Centres,Hood Park Leisure Centre,HPLC,Admiral Cleaning Supplies Ltd,A040930,20/09/2017,1350581,965.3,Consumable Cleaning Materials/Hygiene
North West Leicestershire District Council,31UH,Leisure Centres,Hermitage Leisure Centre,HLC,Admiral Cleaning Supplies Ltd,A040930,27/09/2017,1351693,532.8,Water Treatment
North West Leicestershire District Council,31UH,Leisure Centres,Hood Park Leisure Centre,HPLC,Greasley Electronics Ltd,A040963,13/09/2017,1350421,270,Operational Equipment
North West Leicestershire District Council,31UH,Housing,HRA Housing Management,HRAHM,Oneserve Ltd,A041321,13/09/2017,1351250,28375,Computing
North West Leicestershire District Council,31UH,Housing,HRA Performance & Business Support,HRAPBS,Oneserve Ltd,A041321,20/09/2017,1351475,3325,Computing
North West Leicestershire District Council,31UH,Chief Exec,Chief Executive,CHEX,CBRE Ltd,A041437,27/09/2017,1351706,7012,Consultants Fees
North West Leicestershire District Council,31UH,Housing Repairs,HRA Housing Repairs & Maintenance,HRAHRM,Redacted- Personal Data,A041590,13/09/2017,1351084,262.68,Under Occupancy Incentives
North West Leicestershire District Council,31UH,Chief Exec,Chief Executive,CHEX,Infrastructure & Environment UK Ltd,A041786,06/09/2017,1350860,4468,Consultants Fees
North West Leicestershire District Council,31UH,Leisure Centres,Hood Park Leisure Centre,HPLC,Dura-Sport (Leisure Care) Ltd,A041815,20/09/2017,1351033,350,General Repairs
North West Leicestershire District Council,31UH,Housing Repairs,HRA Housing Repairs & Maintenance,HRAHRM,Aspect Contracts Limited,A041868,13/09/2017,1351101,605,Contract Payments (Dws) Ext
North West Leicestershire District Council,31UH,Housing Repairs,HRA Housing Repairs & Maintenance,HRAHRM,Aspect Contracts Limited,A041868,13/09/2017,1351102,530,Contract Payments (Dws) Ext
North West Leicestershire District Council,31UH,Housing Repairs,HRA Housing Repairs & Maintenance,HRAHRM,Aspect Contracts Limited,A041868,13/09/2017,1351389,900,Contract Payments (Dws) Ext
North West Leicestershire District Council,31UH,Housing,HRA Performance & Business Support,HRAPBS,Michael Page International Recruitment Ltd,A041893,06/09/2017,1350642,2017.75,Agency Staff
North West Leicestershire District Council,31UH,Housing,HRA Performance & Business Support,HRAPBS,Michael Page International Recruitment Ltd,A041893,06/09/2017,1350802,2017.75,Agency Staff
North West Leicestershire District Council,31UH,Housing,HRA Performance & Business Support,HRAPBS,Michael Page International Recruitment Ltd,A041893,06/09/2017,1350970,1614.2,Agency Staff
North West Leicestershire District Council,31UH,Housing,HRA Performance & Business Support,HRAPBS,Michael Page International Recruitment Ltd,A041893,13/09/2017,1351257,2017.75,Agency Staff
North West Leicestershire District Council,31UH,Housing,HRA Performance & Business Support,HRAPBS,Michael Page International Recruitment Ltd,A041893,20/09/2017,1351497,7840,Agency Staff
North West Leicestershire District Council,31UH,Housing,HRA Performance & Business Support,HRAPBS,Michael Page International Recruitment Ltd,A041893,27/09/2017,1351258,2017.75,Agency Staff
North West Leicestershire District Council,31UH,Street Management,Environment Transport,ENOT,FAROL Limited,A041905,13/09/2017,1350333,303.22,Repairs - Parts
North West Leicestershire District Council,31UH,Housing,HRA Performance & Business Support,HRAPBS,Geoff Smith Associates Ltd,A041931,27/09/2017,1351722,1651.88,Stationery
North West Leicestershire District Council,31UH,Housing,HRA Performance & Business Support,HRAPBS,Coalville Yellow Cabs,A041983,06/09/2017,1350717,307,Public Transport
North West Leicestershire District Council,31UH,Housing,HRA Performance & Business Support,HRAPBS,Coalville Yellow Cabs,A041983,06/09/2017,1350718,397.5,Public Transport
North West Leicestershire District Council,31UH,Information Technology,ICT Services,ICT,Computer Relocations Limited,A042045,20/09/2017,1351410,990,Contract Payments (Other) Ext
North West Leicestershire District Council,31UH,Finance,Exchequer Services,EXCH,Severn Trent Water,A042250,12/09/2017,1351230,335.67,Legal & Professional Services
North West Leicestershire District Council,31UH,Finance,Financial Planning,FINPLA,National Counties Building Society,A042331,26/09/2017,1352006,1000000,Policy Lending
North West Leicestershire District Council,31UH,Information Technology,ICT Services,ICT,Premier Paper Group,A042438,13/09/2017,1351185,332.99,Consumable Materials
North West Leicestershire District Council,31UH,Leisure Centres,Hood Park Bar and Catering,HPBC,Snackline Direct Ltd,A042489,06/09/2017,1350823,620.85,Catering Provisions
North West Leicestershire District Council,31UH,Leisure Centres,Hermitage Bar & Catering,HLBC,Snackline Direct Ltd,A042489,13/09/2017,1351180,657.61,Catering Provisions
North West Leicestershire District Council,31UH,Leisure Centres,Hermitage Bar & Catering,HLBC,Snackline Direct Ltd,A042489,13/09/2017,1351181,512.29,Catering Provisions
North West Leicestershire District Council,31UH,Leisure Centres,Hermitage Bar & Catering,HLBC,Snackline Direct Ltd,A042489,27/09/2017,1351814,448.29,Catering Provisions
North West Leicestershire District Council,31UH,Leisure Centres,Hood Park Bar and Catering,HPBC,Snackline Direct Ltd,A042489,27/09/2017,1351861,790.23,Catering Provisions
North West Leicestershire District Council,31UH,Street Management,Environment Transport,ENOT,Partic Motor Spares Ltd,A042528,27/09/2017,1351773,805.5,Repairs - Parts
North West Leicestershire District Council,31UH,Finance,Exchequer Services,EXCH,British Gas,A042590,06/09/2017,1350837,1267.31,Electricity
North West Leicestershire District Council,31UH,Finance,Exchequer Services,EXCH,British Gas,A042590,06/09/2017,1350838,-3690.64,Electricity
North West Leicestershire District Council,31UH,Property Services,Property Commercial Lettings,PROPCL,British Gas,A042590,06/09/2017,1350839,6878.67,Electricity
North West Leicestershire District Council,31UH,Planning & Development,Environment Community Planning,ECP,Broadland Guarding Services Ltd,A042635,27/09/2017,1351756,4444.27,Agency Staff
North West Leicestershire District Council,31UH,Street Management,Environment General Technician,ENOGT,Thomas Bow Ltd,A043160,20/09/2017,1351530,879.87,Contract Payments (Other) Ext
North West Leicestershire District Council,31UH,Housing,HRA Housing Management,HRAHM,Castle Donington TARA,A043161,20/09/2017,1351455,600,Grants
North West Leicestershire District Council,31UH,Housing Strategy,Community - Housing Strategy,HS,East Cambridgeshire District Council,A043188,06/09/2017,1348931,398,Training Course
North West Leicestershire District Council,31UH,Information Technology,ICT Services,ICT,Centreprise International Ltd,A043431,13/09/2017,1351141,880,Administrative Equipment
North West Leicestershire District Council,31UH,Leisure Centres,Hermitage Leisure Centre,HLC,Midlands Cooling Services Ltd,A043433,20/09/2017,1351440,985,Repairs - Market Stalls
North West Leicestershire District Council,31UH,Information Technology,ICT Services,ICT,ACS Systems (UK) Ltd T/a ACS Office Solutions,A043447,13/09/2017,1351026,599,Operational Equipment
North West Leicestershire District Council,31UH,Street Management,Environment Transport,ENOT,Certas Energy Uk Ltd,A043448,13/09/2017,1351240,503.08,Fuel
North West Leicestershire District Council,31UH,Street Management,Environment Transport,ENOT,Certas Energy Uk Ltd,A043448,13/09/2017,1351275,17544.24,Fuel
North West Leicestershire District Council,31UH,Street Management,Environment Transport,ENOT,Certas Energy Uk Ltd,A043448,27/09/2017,1351873,485.9,Fuel
North West Leicestershire District Council,31UH,Street Management,Environment Transport,ENOT,Certas Energy Uk Ltd,A043448,27/09/2017,1351872,15864.87,Fuel
North West Leicestershire District Council,31UH,Communications,Corporate - Communications,CP,Vinyl  Decals Direct Ltd,A043487,20/09/2017,1351460,425.55,Signage
North West Leicestershire District Council,31UH,Finance,Exchequer Services,EXCH,Corvid Paygate Ltd,A043549,27/09/2017,1351971,1919.83,Computing
North West Leicestershire District Council,31UH,Leisure Centres,Hood Park Leisure Centre,HPLC,Please Hold UK,A043591,27/09/2017,1351757,298.5,Service Contracts
North West Leicestershire District Council,31UH,Housing,HRA Housing Management,HRAHM,JLA Limited,A043639,20/09/2017,1351676,433.65,General Repairs
North West Leicestershire District Council,31UH,Planning & Development,Environment Community Planning,ECP,The Professional Promotion Company Ltd,A043727,20/09/2017,1351692,320,Promotional Materials
North West Leicestershire District Council,31UH,Housing Repairs,HRA Housing Repairs & Maintenance,HRAHRM,Oakleaf Surveying Ltd,A043749,06/09/2017,1350849,710,Legal & Professional Services
North West Leicestershire District Council,31UH,Leisure Centres,Hood Park Leisure Centre,HPLC,Tropicana Health and Fitness,A043758,20/09/2017,1351696,387.08,Equipment For Resale
North West Leicestershire District Council,31UH,Leisure Centres,Hood Park Leisure Centre,HPLC,Tropicana Health and Fitness,A043758,20/09/2017,1351695,378.57,Equipment For Resale
North West Leicestershire District Council,31UH,Housing,HRA Performance & Business Support,HRAPBS,Alysium Consulting,A043813,13/09/2017,1351242,3225,Computing
North West Leicestershire District Council,31UH,Chief Exec,Chief Executive,CHEX,David Nash ( trading as Koda Consulting),A043827,20/09/2017,1351404,3108,Consultants Fees
North West Leicestershire District Council,31UH,Housing Repairs,HRA Housing Repairs & Maintenance,HRAHRM,H20 Utilities Ltd,A043865,13/09/2017,1351100,450,Associated Drainage Services
North West Leicestershire District Council,31UH,Housing Repairs,HRA Housing Repairs & Maintenance,HRAHRM,H20 Utilities Ltd,A043865,13/09/2017,1351390,1265,Associated Drainage Services
North West Leicestershire District Council,31UH,Housing Repairs,HRA Housing Repairs & Maintenance,HRAHRM,H20 Utilities Ltd,A043865,13/09/2017,1351391,695,Associated Drainage Services
North West Leicestershire District Council,31UH,Street Management,Environment Transport,ENOT,Shepshed Auto Spares Ltd,A043917,13/09/2017,1351158,267,Operational Equipment
North West Leicestershire District Council,31UH,Corporate Director,Human Resources,HR,Wider Plan Ltd,A043948,06/09/2017,1351004,4205,Staff Benefit Scheme
North West Leicestershire District Council,31UH,Housing,HRA Housing Management,HRAHM,Severn Trent Water,A043977,06/09/2017,1350673,6074.79,Utilities- connection services
North West Leicestershire District Council,31UH,Housing Repairs,HRA Housing Repairs & Maintenance,HRAHRM,County Safety Services Ltd  t/a CSS Worksafe,A044007,20/09/2017,1351474,365,Operational Equipment - Purchases
North West Leicestershire District Council,31UH,Chief Exec,Chief Executive,CHEX,Jeremy Benn Associates Ltd (t/a JBA Consulting),A044010,06/09/2017,1350750,28369.83,Consultants Fees
North West Leicestershire District Council,31UH,Street Management,Environment Transport,ENOT,Selby's Garage (Woodhouse) Ltd,A044011,13/09/2017,1351149,336.09,Hire Of Operational Equipment
North West Leicestershire District Council,31UH,Street Management,Environment Transport,ENOT,Selby's Garage (Woodhouse) Ltd,A044011,27/09/2017,1352036,513.23,Hire Of Operational Equipment
North West Leicestershire District Council,31UH,Chief Exec,Chief Executive,CHEX,Ecus Ltd,A044014,20/09/2017,1351541,2121.21,Legal Fees
North West Leicestershire District Council,31UH,Housing,HRA Older Persons Service,HRAOPS,Water Plus Limited,A044043,06/09/2017,1350754,1294.03,Water Charges (Metered)
North West Leicestershire District Council,31UH,Street Management,Environment Waste Management,ENOWM,Water Plus Limited,A044043,13/09/2017,1351175,1726.55,Water Charges (Metered)
North West Leicestershire District Council,31UH,Property Services,Property Commercial Lettings,PROPCL,Water Plus Limited,A044043,13/09/2017,1351279,2061.93,Water Charges (Metered)
North West Leicestershire District Council,31UH,Leisure Centres,Hermitage Leisure Centre,HLC,Water Plus Limited,A044043,27/09/2017,1351813,1741.25,Water Charges (Metered)
North West Leicestershire District Council,31UH,Leisure Centres,Hood Park Leisure Centre,HPLC,Premiere Property Services Ltd,A044062,20/09/2017,1351519,1869.4,Repairs - Market Stalls
North West Leicestershire District Council,31UH,Housing Repairs,HRA Housing Repairs & Maintenance,HRAHRM,Woodland Property Services Ltd,A044070,13/09/2017,1351374,15583.72,Contract Payments (Dws) Ext
North West Leicestershire District Council,31UH,Chief Exec,Chief Executive,CHEX,Land Use Consultants Ltd,A044090,06/09/2017,1350859,4535,Consultants Fees
North West Leicestershire District Council,31UH,Chief Exec,Chief Executive,CHEX,Land Use Consultants Ltd,A044090,13/09/2017,1351074,26916,Consultants Fees
North West Leicestershire District Council,31UH,Leisure Centres,Hermitage Leisure Centre,HLC,The International Certification and Training Academy,A044098,13/09/2017,1351239,500,Training Expenses
North West Leicestershire District Council,31UH,Legal & Democratic,Business Development Team,BDT,InPhase Ltd,A044108,20/09/2017,1351476,350.12,Consultants Fees
North West Leicestershire District Council,31UH,Housing,HRA Housing Management,HRAHM,Redacted- Personal Data,A044117,06/09/2017,1350867,325.3,Compensation
North West Leicestershire District Council,31UH,Housing Repairs,HRA Housing Repairs & Maintenance,HRAHRM,Kaefer Ltd,A044187,20/09/2017,1351435,805.42,Contract Payments (Dws) Ext
North West Leicestershire District Council,31UH,Information Technology,ICT Services,ICT,Adept Telecom Plc,A044193,20/09/2017,1351568,6152.76,Contract Payments (Other) Ext
North West Leicestershire District Council,31UH,Housing,HRA Housing Management,HRAHM,Redacted- Personal Data,A044214,13/09/2017,1351368,920.8,Under Occupancy Incentives
North West Leicestershire District Council,31UH,Chief Exec,Chief Executive,CHEX,Dinc Limited T/A Dinc Creative,A044215,06/09/2017,1350735,260,Legal & Professional Services
North West Leicestershire District Council,31UH,Chief Exec,Chief Executive,CHEX,David Tucker Associates,A044236,06/09/2017,1350736,4621.75,Legal Fees
North West Leicestershire District Council,31UH,Planning & Development,Environment - Town Centre/CCTV,ECCTV,J P Pegg Moffatt,A044240,06/09/2017,1350868,534.41,Coalville Shop Front Project
North West Leicestershire District Council,31UH,Housing,HRA Housing Management,HRAHM,Redacted- Personal Data,A044253,06/09/2017,1350794,500,Under Occupancy Incentives
North West Leicestershire District Council,31UH,Street Management,Environment - Street Scene,ESS,Audaz Global Solutions Ltd,A044258,20/09/2017,1351188,2590,Operational Equipment
North West Leicestershire District Council,31UH,Street Management,Environment - Street Scene,ESS,Sileby Fabrications Ltd,A044268,27/09/2017,1351542,6318,Operational Equipment
North West Leicestershire District Council,31UH,Planning & Development,Environment Community Planning,ECP,SLCC Enterprises Ltd,A044280,27/09/2017,1351824,396,Training Expenses
North West Leicestershire District Council,31UH,Housing,HRA Housing Management,HRAHM,Redacted- Personal Data,A044287,06/09/2017,1350891,250,Under Occupancy Incentives
North West Leicestershire District Council,31UH,Housing,HRA Housing Management,HRAHM,Redacted- Personal Data,A044288,06/09/2017,1350894,250,Under Occupancy Incentives
North West Leicestershire District Council,31UH,Housing Repairs,HRA Housing Repairs & Maintenance,HRAHRM,Avon Metals,A044294,13/09/2017,1351237,2124,Vehicle removal and disposal
North West Leicestershire District Council,31UH,Housing,HRA Housing Management,HRAHM,Redacted- Personal Data,A044298,13/09/2017,1351083,353.44,Under Occupancy Incentives
North West Leicestershire District Council,31UH,Housing,HRA Housing Management,HRAHM,Redacted- Personal Data,A044299,13/09/2017,1351067,280,Grants
North West Leicestershire District Council,31UH,Street Management,Environment Waste Management,ENOWM,Redacted- Personal Data,A044304,13/09/2017,1351205,423.43,Non Insurance Damage
North West Leicestershire District Council,31UH,Finance,Exchequer Services,EXCH,Click Travel Ltd,A044308,13/09/2017,1351284,554,Travel and Accomodation
North West Leicestershire District Council,31UH,Chief Exec,Chief Executive,CHEX,Corstorphine & Wright (Birmingham Studio) Ltd,A044311,20/09/2017,1351540,9875,Legal Fees
North West Leicestershire District Council,31UH,Legal & Democratic,Legal Services,LDLS,Timothy Leader,A044312,20/09/2017,1351558,300,External Legal Fees & Advice
North West Leicestershire District Council,31UH,Legal & Democratic,Legal Services,LDLS,Timothy Leader,A044312,20/09/2017,1351559,500,Legal & Professional Services
North West Leicestershire District Council,31UH,Housing,HRA Housing Management,HRAHM,Redacted- Personal Data,A044319,20/09/2017,1351698,500,Under Occupancy Incentives
North West Leicestershire District Council,31UH,Economic Development,Business Focus Group,BFG,Fitness Republic ( Ashby),A044334,27/09/2017,1352004,10000,Grants
North West Leicestershire District Council,31UH,Economic Development,Business Focus Group,BFG,MMM Bread,A044335,27/09/2017,1352005,500,Grants
North West Leicestershire District Council,31UH,Housing,HRA Housing Management,HRAHM,Redacted- Personal Data,A044337,27/09/2017,1352037,500,Under Occupancy Incentives
